{"text_format":"3","workbook":"xlsx","n_sheets":1,"sheets":["Fatura"],"not_rendered":{"defined_names":6},"read":"whole","date_system":"1900"}

{"sheet":"Fatura","index":0,"n_rows":26,"n_cols":7,"rows_kept":26,"merged":[[0,1,0,2],[1,1,1,2],[1,3,1,4],[1,5,1,6],[2,1,2,2],[2,3,2,4],[2,5,2,6],[3,1,3,2],[3,3,3,4],[4,1,4,2],[4,3,4,4],[5,3,5,4],[24,1,24,4],[25,1,25,4]]}
[null,"Nome da Empresa"]
[null,"Endereço",null,"Tlf.: Número de Telefone",null,"E-mail"]
[null,"Código Postal, Localidade",null,"Fax: Número de Fax",null,"Site"]
[null,"Cobrar a:",null,{"$f":"\"Telefone:   \"","v":"Telefone:   "},null,"Fatura N.º:"]
[null,"Endereço:",null,{"$f":"\"Fax:    \"","v":"Fax:    "},null,"Data da Fatura:"]
[{"$nulls":3},{"$f":"\"E-mail:   \"","v":"E-mail:   "}]
[null,{"$f":"\"Fatura Para: \"","v":"Fatura Para: "}]
[null,"N.º do Item","Descrição","Qtd","Preço Unitário","Desconto","Preço"]
[{"$nulls":6},{"$f":"IFERROR((D9*E9)-F9,\"\")","v":0}]
[{"$nulls":6},{"$f":"IFERROR((D10*E10)-F10,\"\")","v":0}]
[{"$nulls":6},0]
[{"$nulls":6},0]
[{"$nulls":6},0]
[{"$nulls":6},0]
[{"$nulls":6},0]
[{"$nulls":6},0]
[{"$nulls":6},0]
[{"$nulls":6},0]
[{"$nulls":6},0]
[{"$nulls":6},0]
[{"$nulls":5},"Subtotal da Fatura",{"$f":"SUM(FaturaSimples[Preço])","v":0}]
[{"$nulls":5},"Taxa de Imposto"]
[{"$nulls":5},"Imposto de Venda",{"$f":"IFERROR(G21*G22,\"\")","v":0}]
[{"$nulls":5},"Outros"]
[null,{"$f":"\"Passar todos os cheques à ordem de \"&nome_empresa&\".\"","v":"Passar todos os cheques à ordem de Nome da Empresa."},{"$nulls":3},"Depósito Recebido"]
[null,"Total a pagar dentro de <N.º> dias. São cobradas taxas de serviço de <N.º>% mensais a contas em atraso.",{"$nulls":3},"TOTAL",{"$f":"IFERROR((G21+G23+G24)-G25,\"\")","v":0}]